Cogmind - Beta 15 @@@ ROGUE MODE // 2025.10.09 @ 23:03:42 Player: DietSnapple Result: Destroyed by 84-S1M(j) with Overtuned Pulse Rifle Performance ------------- Evolutions (0) 0 Regions Visited (4) 800 Robots Destroyed (24) 120 Value Destroyed (422) 422 Prototype IDs (1) 20 Alien Tech Used (0) 0 Bonus (800) 800 TOTAL SCORE: 2162 Bonus ------- Registered with UFD 300 Met Optimus in HQ 500 Cogmind --------- Core Integrity 0/250 Matter 295/300 Energy 60/100 System Corruption 0% Temperature Cool (12) Movement Core (50) Location -7/Scraptown Parts ------- > --- POWER (1) -------- (None) > --- PROPULSION (2) --- (None) > --- UTILITY (2) ------ (None) > --- WEAPON (2) ------- (None) > --- INVENTORY (5) ---- Scrap Suit Enhanced Optical Array Sensor Array Light Armor Plating Peak State ------------ > --- POWER ------------ Light Ion Engine > --- PROPULSION ------- Light Treads Light Treads > --- UTILITY ---------- Large Storage Unit Seismic Detector > --- WEAPON ----------- Junk Cannon > --- INVENTORY -------- Compact Wheel Compact Wheel Enhanced Optical Array Sensor Array Signal Interpreter Improved Signal Interpreter Armor Integrity Analyzer Light Armor Plating Light Armor Plating Hacking Suite Light Cannon Grenade Launcher Rocket Launcher CPS Tube Makeshift Spear [Rating: 20] Favorites ----------- Power Light Ion Engine Engine Light Ion Engine Propulsion Light Treads Treads Light Treads Utility Large Storage Unit Device Seismic Detector Storage Large Storage Unit Weapon Grenade Launcher Energy Gun EM Pulse Gun Ballistic Gun Light Assault Rifle Ballistic Cannon Light Cannon Launcher Grenade Launcher Special Weapon Junk Cannon Build | -11 -10 -10 -10 -7 ------- Run | Yrd Mat Min Sub Scr Slots Evolved . | . . . . . Power . | . . . . . Propulsion . | . . . . . Utility . | . . . . . Weapon . | . . . . . Parts Attached 15 | 7 5 . . 3 Power 2 | 1 1 . . . Engine 2 | 1 1 . . . Core . | . . . . . Reactor . | . . . . . Propulsion 3 | 2 . . . 1 Treads 3 | 2 . . . 1 Leg . | . . . . . Wheel . | . . . . . Hover . | . . . . . Flight . | . . . . . Utility 3 | 1 2 . . . Device 1 | . 1 . . . Storage 2 | 1 1 . . . Processor . | . . . . . Hackware . | . . . . . Protection . | . . . . . Artifact . | . . . . . Weapon 7 | 3 2 . . 2 Energy Gun 2 | 2 . . . . Energy Cannon . | . . . . . Ballistic Gun 1 | 1 . . . . Ballistic Cannon 2 | . 1 . . 1 Launcher 1 | . 1 . . . Special Weapon 1 | . . . . 1 Impact Weapon . | . . . . . Slashing Weapon . | . . . . . Piercing Weapon . | . . . . . Special Melee Weapon . | . . . . . Unidentified Prototypes 1 | . . . . 1 Parts Lost 4 | . 3 . . 1 Power 2 | . 1 . . 1 Propulsion 1 | . 1 . . . Utility . | . . . . . Weapon 1 | . 1 . . . Highest Loss Streak 1 | . 1 . . 1 To Critical Strikes . | . . . . . Average Backups 11 | 2 8 14 15 13 Power . | . . . . . Propulsion 2 | 1 2 3 3 2 Utility 6 | . 3 8 8 7 Weapon 2 | . 1 3 4 2 Tool/Special . | . . . . . Unused Backups 16 | . . . . 16 Power . | . . . . . Propulsion 2 | . . . . 2 Utility 11 | . . . . 11 Weapon 2 | . . . . 2 Tool/Special 1 | . . . . 1 Average Slot Usage (%) 89 | . 87 85 85 92 Engine 13 | . 14 14 14 13 Treads 22 | . 21 14 14 26 Device 12 | . 9 14 14 13 Storage 13 | . 14 14 14 13 Energy Gun 3 | . 12 . . . Ballistic Cannon 9 | . 6 14 14 9 Launcher 9 | . 7 14 14 9 Special Weapon 2 | . . . . 4 Peak Build Rating 20 | 6 8 8 8 20 Average Rating 9 | 4 6 7 8 12 On Entrance 5 | . 6 7 8 8 Naked Turns 7 | . . . . 7 Heaviest Build 38 | 12 30 30 30 38 Greatest Support 40 | 40 40 20 20 40 Greatest Overweight (x) 1 | . 1 1 1 1 Average Overweight (x) . | . . 1 1 . Largest Inventory Capacity 15 | 8 15 15 15 15 Average Capacity 14 | 6 14 15 15 14 Most Carried 15 | 3 13 15 15 15 Average Carried 11 | 2 8 14 15 13 Final Capacity 15 | 8 15 15 15 5 Final Carried 15 | 3 13 15 15 5 Class Distribution -------------------- 100% | Mutant Dominant Class ---------------- Mutant | -10/Materials Mutant | -10/Mines Mutant | -10/Subcaves Mutant | -7/Scraptown Resources | -11 -10 -10 -10 -7 ----------- Run | Yrd Mat Min Sub Scr Matter Collected 567 | 179 231 51 52 54 Remotely . | . . . . . Salvage Created 524 | . 501 23 . . Parts 45 | . 40 5 . . Haulers Intercepted 2 | . 2 . . . Recyclers Shooed 2 | . 2 . . . Parts Field Recycled . | . . . . . Retrieved Matter . | . . . . . Parts Self-Destructed . | . . . . . Prevented . | . . . . . Kills | -11 -10 -10 -10 -7 ------- Run | Yrd Mat Min Sub Scr Combat Hostiles Destroyed 13 | . 10 3 . . Guns 2 | . 2 . . . Cannons 2 | . 2 . . . AOE 9 | . 6 3 . . Classes Destroyed 9 | . 9 . . . Worker 2 | . 2 . . . Builder 2 | . 2 . . . Tunneler 2 | . 1 1 . . Hauler 2 | . 2 . . . Recycler 1 | . 1 . . . Operator 1 | . 1 . . . Watcher 1 | . 1 . . . Swarmer 6 | . 3 3 . . Grunt 7 | . 7 . . . Best Kill Streak 5 | . 5 4 . . Combat Bots Only 3 | . 3 3 . . Max Kills in Single Turn 3 | . 3 2 . . Gunslinging . | . . . . . Exploded 2 | . 2 1 . . Melee . | . . . . . Uniques/NPCs Destroyed . | . . . . . Combat | -11 -10 -10 -10 -7 -------- Run | Yrd Mat Min Sub Scr Hostile Shots Fired 73 | . 41 8 . 24 Missed 29 | . 15 5 . 9 Hits 44 | . 26 3 . 15 Melee 1 | . . . . 1 Projectile 43 | . 26 3 . 14 Damage Taken 845 | . 501 27 . 317 Core 267 | . 109 7 . 151 Absorbed by Shields . | . . . . . Core Remaining (%) 100 | 100 . . . . Volleys Fired 48 | . 42 3 . 3 Largest 2 | . 2 1 . 1 Hottest 80 | . 80 30 . . Shots Fired 58 | . 52 3 . 3 Gun 23 | . 23 . . . Cannon 14 | . 14 . . . Launcher 18 | . 15 3 . . Special 3 | . . . . 3 Kinetic 14 | . 14 . . . Thermal . | . . . . . Explosive 18 | . 15 3 . . Electromagnetic 23 | . 23 . . . Impact 3 | . . . . 3 Robot Hit Streak 5 | . 5 . . 5 Robot Miss Streak 4 | . 4 . . . Penetration Max . | . . . . . Secondary Targets . | . . . . . Shots Hit Robots 24 | . 21 . . 3 Core Hits 31 | . 26 5 . . Critical Kills . | . . . . . Critical Parts Destroyed 1 | . . . . 1 Critical Strikes 1 | . . . . 1 Smash 1 | . . . . 1 Melee Attacks . | . . . . . Impact . | . . . . . Slashing . | . . . . . Piercing . | . . . . . Sneak Attacks . | . . . . . Combat Hostiles . | . . . . . Follow-up Attacks . | . . . . . Damage Inflicted 1359 | . 1165 145 . 49 Guns 181 | . 181 . . . Cannons 145 | . 145 . . . Explosions 981 | . 836 145 . . Melee . | . . . . . Ramming 3 | . 3 . . . Kinetic 145 | . 145 . . . Thermal 108 | . 108 . . . Explosive 873 | . 728 145 . . Electromagnetic 181 | . 181 . . . Impact 49 | . . . . 49 Slashing . | . . . . . Piercing . | . . . . . Highest Corruption . | . . . . . Average Corruption . | . . . . . Corruption Purged . | . . . . . Corruption Blocked . | . . . . . Overload Shots . | . . . . . Overflow Damage 56 | . 40 . . 16 Projectiles 16 | . . . . 16 Explosions 40 | . 40 . . . Melee . | . . . . . Knockbacks 1 | . 1 . . . Impact . | . . . . . Kinetic 1 | . 1 . . . Secondary . | . . . . . Self-Inflicted Damage 188 | . 188 . . . Shots 4 | . 4 . . . Rammed 1 | . 1 . . . Targets Rammed 2 | . 2 . . . Kicked . | . . . . . Crushed 1 | . 1 . . . Highest Temperature 126 | . 126 . . . Average Temperature 33 | . 33 . . . Received Heat Transfer 321 | . 153 . . 168 Siege Activations . | . . . . . Martial Activations . | . . . . . Shielding Activations . | . . . . . Robots Disrupted . | . . . . . Combat Hostiles . | . . . . . Robots Corrupted 1 | . 1 . . . Combat Hostiles . | . . . . . Parts Fried 2 | . 2 . . . Impact Corruptions 1 | . . . . 1 Robots Melted . | . . . . . Combat Hostiles . | . . . . . Parts Melted . | . . . . . Heat Transferred 150 | . 150 . . . Parts Sabotaged . | . . . . . Parts Stolen . | . . . . . Parts Stripped . | . . . . . Power Chain Reactions 2 | . 2 . . . Alert | -11 -10 -10 -10 -7 ------- Run | Yrd Mat Min Sub Scr Maximum Alert Level . | . . . . . Low Security (%) 100 | 100 100 100 . . Level 1 . | . . . . . Level 2 . | . . . . . Level 3 . | . . . . . Level 4 . | . . . . . Level 5 . | . . . . . High Security . | . . . . . Max Security . | . . . . . Peak Influence 146 | . 146 76 . . Initial 22 | . . 22 . . Average 36 | . 56 10 . . Influence Increases 484 | . 398 86 . . Destroy 0b10 Robot/C 260 | . 200 60 . . Destroy 0b10 Robot/NC 55 | . 50 5 . . Destroy Leader 66 | . 56 10 . . Disable Machine 45 | . 45 . . . Destroy Structure 58 | . 47 11 . . Influence Decreases 484 | . 340 144 . . Entered New Map 36 | . . 36 . . Time Decay 418 | . 310 108 . . Lost Part 30 | . 30 . . . Squads Dispatched 3 | . 3 . . . Investigation 1 | . 1 . . . Extermination . | . . . . . Reinforcement 2 | . 2 . . . Assault . | . . . . . Garrison . | . . . . . Intercept . | . . . . . Searches Triggered . | . . . . . Construction Impeded . | . . . . . Haulers Reinforced . | . . . . . Active Scanning Responses . | . . . . . Cargo Convoy Interrupts . | . . . . . Stealth | -11 -10 -10 -10 -7 --------- Run | Yrd Mat Min Sub Scr Distress Signals 2 | . 2 . . . Communications Jammed . | . . . . . Distress Signals . | . . . . . Times Spotted 29 | . 19 3 . 7 Peak Tracking Total 5 | . 5 3 . 3 Tactical Retreats 1 | . . . . 1 Traps | -11 -10 -10 -10 -7 ------- Run | Yrd Mat Min Sub Scr Traps Triggered 1 | . 1 . . . Indirectly . | . . . . . Trap Hack Attempts . | . . . . . Triggered . | . . . . . Disarmed . | . . . . . Reprogrammed . | . . . . . Reused . | . . . . . Traps Extracted . | . . . . . Installed . | . . . . . Triggered . | . . . . . Machines | -11 -10 -10 -10 -7 ---------- Run | Yrd Mat Min Sub Scr Machines Disabled 3 | . 3 . . . Max in Single Turn 1 | . 1 . . . Machines Repaired . | . . . . . Machines Dismantled . | . . . . . Machines Sabotaged . | . . . . . Overloaded Fab Kills . | . . . . . Hacking | -11 -10 -10 -10 -7 --------- Run | Yrd Mat Min Sub Scr Machines Accessed 3 | . . . . 3 Terminals . | . . . . . Fabricators . | . . . . . Repair Stations . | . . . . . Recycling Units . | . . . . . Scanalyzers . | . . . . . Garrison Access . | . . . . . Total Hacks 11 | . . . . 11 Successful 11 | . . . . 11 Failed . | . . . . . Catastrophic . | . . . . . Database Lockouts . | . . . . . Manual . | . . . . . Terminals . | . . . . . Fabricators . | . . . . . Repair Stations . | . . . . . Recycling Units . | . . . . . Scanalyzers . | . . . . . Garrison Access . | . . . . . Terminal Hacks 11 | . . . . 11 Record 11 | . . . . 11 Fabricator Hacks . | . . . . . Repair Station Hacks . | . . . . . Recycling Unit Hacks . | . . . . . Scanalyzer . | . . . . . Garrison Access Hacks . | . . . . . Unauthorized Hacks . | . . . . . Terminals . | . . . . . Fabricators . | . . . . . Repair Stations . | . . . . . Recycling Units . | . . . . . Scanalyzers . | . . . . . Garrison Access . | . . . . . Data Cores Recovered . | . . . . . Used . | . . . . . Hacking Detections . | . . . . . Full Trace Events . | . . . . . Feedback Events . | . . . . . Feedback Blocked . | . . . . . Robot Schematics Acquired . | . . . . . Robots Built . | . . . . . Authchips . | . . . . . Time . | . . . . . Total Robot Build Rating . | . . . . . Part Schematics Acquired . | . . . . . Parts Built . | . . . . . Authchips . | . . . . . Time . | . . . . . Total Part Build Rating . | . . . . . Parts Repaired . | . . . . . Time . | . . . . . Parts Recycled . | . . . . . Recycled Matter . | . . . . . Retrieved Matter . | . . . . . Retrieved Components . | . . . . . Parts Scanalyzed . | . . . . . Part Schematics Acquired . | . . . . . Parts Damaged . | . . . . . Bothacking | -11 -10 -10 -10 -7 ------------ Run | Yrd Mat Min Sub Scr Used RIF Installer . | . . . . . Robots Hacked . | . . . . . Non-combat . | . . . . . Combat . | . . . . . Robot Hacks Applied . | . . . . . Relay Couplers Released . | . . . . . Fabnet Peak Effective % . | . . . . . Robots Rewired . | . . . . . Allies Hacked . | . . . . . Hacks Repelled . | . . . . . Allies | -11 -10 -10 -10 -7 -------- Run | Yrd Mat Min Sub Scr Total Allies . | . . . . . Largest Group . | . . . . . Highest-Rated Group . | . . . . . Highest-Rated Ally . | . . . . . Total Orders . | . . . . . Ally Attacks . | . . . . . Total Damage . | . . . . . Kills . | . . . . . Allies Corrupted . | . . . . . Allies Melted 4 | . . . . 4 Intel | -11 -10 -10 -10 -7 ------- Run | Yrd Mat Min Sub Scr Active Infowar (turns) 3726 | . 738 704 257 2027 Seismic 3726 | . 738 704 257 2027 Robot Analysis Total . | . . . . . Derelict Logs Recovered 3 | . . 2 1 . Drone Launches . | . . . . . Drone Recoveries . | . . . . . Exploration | -11 -10 -10 -10 -7 ------------- Run | Yrd Mat Min Sub Scr Turns Passed 4230 | 121 1114 704 257 2034 Spaces Moved 2181 | 70 491 291 108 1221 Core 17 | 3 . . . 14 Treads 2164 | 67 491 291 108 1207 Legs . | . . . . . Wheels . | . . . . . Hover . | . . . . . Flight . | . . . . . Fastest Speed 50 | 50 160 240 240 50 Average Speed 184 | 155 190 240 240 164 Slowest Speed 240 | 160 240 240 240 240 Overloaded Moves . | . . . . . Propulsion Burnouts . | . . . . . Robots Hopped . | . . . . . Potential Cave-ins . | . . . . . Cave-ins Triggered . | . . . . . Exploration Rate (%) 43 | 5 67 63 6 78 Regions Visited 4 Branch Regions 3 Pre-discovered Areas . | . . . . . Known Exits Taken 1 | . . 1 . . Unknown Exits Taken 3 | 1 1 . 1 . Scrap Searched 3 | . . 1 . 2 Spaces Dug . | . . . . . Terrain Destroyed 55 | . 44 11 . . Melee . | . . . . . Projectile . | . . . . . AOE 55 | . 44 11 . . Terrain Rammed . | . . . . . Walls Destroyed . | . . . . . Machines Disabled . | . . . . . Actions | -11 -10 -10 -10 -7 --------- Run | Yrd Mat Min Sub Scr Total 2339 | 79 616 295 107 1242 Wait 65 | . 65 . . . Move 2177 | 69 490 290 107 1221 Hop . | . . . . . Pick Up 21 | 3 11 2 . 5 Fast Attach 9 | 6 2 . . 1 Attach 4 | . 2 . . 2 Detach 4 | . 1 . . 3 Swap 2 | 1 1 . . . Drop 7 | . . . . 7 Fire 48 | . 42 3 . 3 Melee . | . . . . . Ram . | . . . . . Kick . | . . . . . Crush 2 | . 2 . . . Escape Stasis . | . . . . . Rewire . | . . . . . Trap . | . . . . . Miscellaneous . | . . . . . Route ------- -11/Scrapyard -10/Materials (discovered 3 exits: [*Mat] / [*Min x2]) -10/Mines (discovered 2 exits: [*Mat] / *Sub) -10/Subcaves -7/Scraptown (discovered 1 exit: [*Fac]) History --------- Turn | Location | Event 30 | -11/Scrapyard | Discovered new exit (range 16) 122 | -11/Scrapyard | Entered Materials 122 | -10/Materials | Discovered new exit (range 7) 284 | -10/Materials | Discovered new exit (range 15) 308 | -10/Materials | Build established: Mutant 650 | -10/Materials | Discovered new exit (range 11) 1236 | -10/Materials | Entered Mines 1251 | -10/Mines | Identified exit to Subcaves 1272 | -10/Mines | Learned Materials terminal intel 1289 | -10/Mines | Discovered new exit (range 14) 1303 | -10/Mines | Received a Rocket Launcher from a helpful Derelict 1791 | -10/Mines | A weapon hastily lodged in a ceiling crevice suddenly fell to the ground 1940 | -10/Mines | Entered Subcaves 1941 | -10/Subcaves | Approached by a straggling Scientist 2059 | -10/Subcaves | Scientist uncovered a shortcut to Scraptown 2102 | -10/Subcaves | A swath of the cavern ceiling suddenly collapsed 2176 | -10/Subcaves | Learned 2 Materials zone layouts 2197 | -10/Subcaves | Entered Scraptown 2610 | -7/Scraptown | Visited UFD Registry 2615 | -7/Scraptown | Registered with UFD as "Rustripper" 2677 | -7/Scraptown | Visited SPCMW 2748 | -7/Scraptown | Visited Shadow of the Wyrm 2760 | -7/Scraptown | Visited Spacefarers 2898 | -7/Scraptown | Discovered new exit (range 5) 3431 | -7/Scraptown | Visited Chapter 10 3505 | -7/Scraptown | Visited Junk Cannon Lab 3528 | -7/Scraptown | Found Prototype Special Weapon 3528 | -7/Scraptown | Identified Junk Cannon 3600 | -7/Scraptown | Visited DA-N13 Charitable Foundation 3867 | -7/Scraptown | Visited Abandonware Association 3917 | -7/Scraptown | Visited Scrap Suit Storage 3948 | -7/Scraptown | Found Scrap Suit 4057 | -7/Scraptown | Met Optimus 4057 | -7/Scraptown | Accepted into 0bPrime 4158 | -7/Scraptown | Civil war broke out across Scraptown 4224 | -7/Scraptown | Released all parts (5) 4226 | -7/Scraptown | Core integrity fell below 50% 4228 | -7/Scraptown | Core integrity fell below 20% 4231 | -7/Scraptown | Lost 6 allies 4231 | -7/Scraptown | Destroyed by 84-S1M(j) with Overtuned Pulse Rifle Last Messages --------------- 04170_ 7Z-WKU(r) destroyed. 04170_ Slug penetrates JW-T1I(r). 04172_ Bolt penetrates JW-T1I(r). 04175_ Slug penetrates JW-T1I(r). 04175_ JW-T1I(r) destroyed. 04187_ Bolt penetrates 6R-EWY(j). 04187_ 6R-EWY(j) destroyed. 04198_ Bolt penetrates 84-S1M(j). 04200_ Bolt penetrates Wall. 04200_ Bolt penetrates 84-S1M(j). 04200_ B9-VB5(h) destroyed. 04222_ Lgt. Ion Engine destroyed. 04222_ IO-GK3(x) suffers critical hit (Smash). 04222_ Destroyed Structural Scanner. 04222_ IO-GK3(x) system corrupted by crushing effect. 04224_ Released Junk Cannon. 04224_ Released Seismic Detector. 04224_ Released Lrg. Storage Unit. 04224_ Released Lgt. Treads. 04224_ Lgt. Treads crushed and broken. Map ----- +----------------------------------------------------+ | | | | | | | | | | | | | | | | | | | | | ?????????????????????????????????????????????????? | | ?????????????????????????????????????????????????? | | ?????????????????????????????????????????????????? | | ?????????????????????????????????????????????????? | | ?????????????????????????????????????????????????? | | ?????????????????????????????????????????????????? | | ?????????????????????????????????????????????????? | | ?????????????????????????????????????????????????? | | ?????????????????????????????????????????????????? | | ?????????????????????????????????????????????????? | | ?????????????????????????????????????????????????? | | ?????????????????????????????????????????????????? | | ?????????????????????????????????????????????????? | | ?????????###################???####??????????????? | | ?????????"""##"""##""|##"""##### ##????????#????? | | ????????#""!##"" "#""|##!@"#"## ######=% #????? | | ????????#""|!/!!= ! %!!%%!!!#???? | | ????????#=!!]=!| x j ![==![!*#???? | | ????????####################### "######???????? | | ??????????????????????????????## ###????????????? | | ???????????????????????????????# #??????????????? | | ???????????????????????????????# #??????????????? | | ???????????????????????????????# #??????????????? | | ???????????????????????????????# #??????????????? | | ???????????????????????????????# #??????????????? | | ???????????????????????????????# #??????????????? | | ???????????????????????????????# #??????????????? | | ???????????????????????????????# #####"? ???????? | | ???????????????????????????????# #""""" ????????? | | ???????????????????????????????# # [ [ ?????????? | | ???????????????????????????????# # ??????????? | | ?? ?????????????????????? ?????# # ???????????? | | ?? ??????????????????????# ????# =## #???????????? | | ## ###????????????????#### #####!%/# ##??????????? | | "" """"????????????""""""" """"" /"" "#??????????? | | ?????????? !% "#??????????? | | ?????????? [ "#???####???? | | ?????????? "#?? ]!#???? | | ??????????? "## [ #???? | | ?? ?????? [!#???? | +----------------------------------------------------+ Best States ------------- Heat Dissipation 25 Energy Generation 10 Energy Capacity 125 Matter Stores 300 Matter Capacity 300 Sight Range 16 Terrain Scan Density 10 Evasion (%) 50 Recoil Reduction 2 Item Schematics ----------------- None Robot Schematics ------------------ None Fabricated ------------ Nothing Repaired ---------- Nothing Alien Tech Used ----------------- None Achievements -------------- None Challenges ------------ None Game ------ Seed PitchforkThunderJammer Manual? 0 Play Time 00:20:14 Cumulative 29.8 hours Start 2025.10.09 @ 22:44:45 End 2025.10.09 @ 23:03:42 Sessions 1 Manual Loads 0 Difficulty Rogue Special Mode None Game No. 81 Rogue 74 Adventurer 7 Explorer 0 Win Type - Total 0 Types 0/0/0/0/0/0/0/0/0/0 Lore% 8 Gallery% 27 Achievement% 27 Wizard Run 0 Options --------- Layout 0 ASCII 0 Keyboard 1 Movement Vi Keybinds 0 Fullscreen 1 Font 18/SmallcapsGlow Map View 112x50 Zoom Use 0% Tactical HUD 1 Map Filters NONE Filters NONE Steam 1 RUN: 366b41cc-6f8a-403d-a32c-ea10aeec0958